[Event "Early-Titled-Tuesday-Blitz-February-27-2024"]
[Site "Chess.com"]
[Date "2024.02.27"]
[Round "7"]
[White "marcodobrikov"]
[Black "SARGISMV"]
[Result "0-1"]
[WhiteElo "2601"]
[BlackElo "2481"]
[TimeControl "180+1"]
[EndTime "9:17:25 PST"]
[Termination "SARGISMV won by checkmate"]

1. Nf3 {[%clk 0:02:56.8]} 1... Nf6 {[%clk 0:02:59.2]} 2. g3 {[%clk 0:02:56.2]}
2... b5 {[%clk 0:02:58.4]} 3. Bg2 {[%clk 0:02:56.5]} 3... Bb7 {[%clk 0:02:58.9]}
4. a4 {[%clk 0:02:55.5]} 4... a6 {[%clk 0:02:57.2]} 5. axb5 {[%clk 0:02:54.1]}
5... axb5 {[%clk 0:02:58.1]} 6. Rxa8 {[%clk 0:02:54.3]} 6... Bxa8 {[%clk
0:02:59]} 7. O-O {[%clk 0:02:54.5]} 7... e6 {[%clk 0:02:57.5]} 8. b3 {[%clk
0:02:52.3]} 8... Be7 {[%clk 0:02:56.2]} 9. Bb2 {[%clk 0:02:52.2]} 9... O-O
{[%clk 0:02:56.3]} 10. Na3 {[%clk 0:02:51.5]} 10... Bxf3 {[%clk 0:02:45.8]} 11.
Bxf3 {[%clk 0:02:51.2]} 11... c6 {[%clk 0:02:46.3]} 12. c4 {[%clk 0:02:51.7]}
12... Qa5 {[%clk 0:02:36.1]} 13. Nc2 {[%clk 0:02:46.5]} 13... Qa2 {[%clk
0:02:28.1]} 14. Bxf6 {[%clk 0:02:46]} 14... Bxf6 {[%clk 0:02:25.9]} 15. cxb5
{[%clk 0:02:46.4]} 15... cxb5 {[%clk 0:02:18.1]} 16. Ne3 {[%clk 0:02:36.9]}
16... Rc8 {[%clk 0:02:09]} 17. d4 {[%clk 0:02:34.3]} 17... Nc6 {[%clk
0:02:03.8]} 18. d5 {[%clk 0:02:34.5]} 18... Nd4 {[%clk 0:02:02]} 19. dxe6 {[%clk
0:02:34.8]} 19... dxe6 {[%clk 0:01:56.8]} 20. Ng4 {[%clk 0:02:30.3]} 20... Nxb3
{[%clk 0:01:10.9]} 21. Qd7 {[%clk 0:02:22.6]} 21... Qc2 {[%clk 0:00:43.9]} 22.
Nxf6+ {[%clk 0:02:10.8]} 22... gxf6 {[%clk 0:00:43.7]} 23. Qxb5 {[%clk
0:02:11.7]} 23... Nd4 {[%clk 0:00:41.1]} 24. Qh5 {[%clk 0:02:10.1]} 24... Qg6
{[%clk 0:00:32.3]} 25. Qh4 {[%clk 0:02:06.6]} 25... Rc4 {[%clk 0:00:20.7]} 26.
Qh3 {[%clk 0:01:54.7]} 26... Rc2 {[%clk 0:00:12.7]} 27. Bh5 {[%clk 0:01:41.5]}
27... Nxe2+ {[%clk 0:00:10.4]} 28. Bxe2 {[%clk 0:01:36]} 28... Rxe2 {[%clk
0:00:11.3]} 29. Ra1 {[%clk 0:01:35.4]} 29... Kg7 {[%clk 0:00:10.2]} 30. Qh4
{[%clk 0:01:31]} 30... Rb2 {[%clk 0:00:10.5]} 31. Ra4 {[%clk 0:01:27.8]} 31...
f5 {[%clk 0:00:08.1]} 32. Ra7 {[%clk 0:01:17.3]} 32... Qf6 {[%clk 0:00:05.5]}
33. Qh5 {[%clk 0:01:13.4]} 33... Rb4 {[%clk 0:00:04.2]} 34. Kg2 {[%clk
0:01:04.3]} 34... Rg4 {[%clk 0:00:04.3]} 35. h3 {[%clk 0:01:03.2]} 35... Rg6
{[%clk 0:00:04.6]} 36. Qf3 {[%clk 0:01:01.4]} 36... Qe5 {[%clk 0:00:05]} 37. Kh2
{[%clk 0:00:49.7]} 37... Qe4 {[%clk 0:00:04.9]} 38. Qc3+ {[%clk 0:00:49]} 38...
e5 {[%clk 0:00:03.5]} 39. Qb3 {[%clk 0:00:44.5]} 39... Rf6 {[%clk 0:00:03.1]}
40. h4 {[%clk 0:00:44.6]} 40... f4 {[%clk 0:00:03.4]} 41. h5 {[%clk 0:00:43.8]}
41... fxg3+ {[%clk 0:00:03.7]} 42. Qxg3+ {[%clk 0:00:44.2]} 42... Kh6 {[%clk
0:00:03.9]} 43. Ra3 {[%clk 0:00:36.8]} 43... Qf4 {[%clk 0:00:04.8]} 44. Re3
{[%clk 0:00:32]} 44... Qxg3+ {[%clk 0:00:04.7]} 45. fxg3 {[%clk 0:00:32.9]}
45... Rf5 {[%clk 0:00:05.2]} 46. g4 {[%clk 0:00:33]} 46... Rf4 {[%clk
0:00:05.5]} 47. Kg3 {[%clk 0:00:25]} 47... f6 {[%clk 0:00:06.1]} 48. Kh3 {[%clk
0:00:21.9]} 48... Kg5 {[%clk 0:00:07]} 49. Rg3 {[%clk 0:00:22.4]} 49... e4
{[%clk 0:00:07.1]} 50. Rg2 {[%clk 0:00:23]} 50... Rf3+ {[%clk 0:00:07.3]} 51.
Kh2 {[%clk 0:00:23.5]} 51... Kf4 {[%clk 0:00:07.1]} 52. h6 {[%clk 0:00:20.1]}
52... e3 {[%clk 0:00:07.5]} 53. Rg1 {[%clk 0:00:20.1]} 53... Rf2+ {[%clk
0:00:07.9]} 54. Kh3 {[%clk 0:00:20.7]} 54... Kf3 {[%clk 0:00:08.2]} 55. Ra1
{[%clk 0:00:20.1]} 55... e2 {[%clk 0:00:07.8]} 56. Kh4 {[%clk 0:00:20.4]} 56...
Kg2 {[%clk 0:00:08]} 57. g5 {[%clk 0:00:20.7]} 57... fxg5+ {[%clk 0:00:07.5]}
58. Kxg5 {[%clk 0:00:21.6]} 58... Rf1 {[%clk 0:00:08.1]} 59. Ra2 {[%clk
0:00:21.9]} 59... Kf2 {[%clk 0:00:08.5]} 60. Kf6 {[%clk 0:00:21.5]} 60... Rg1
{[%clk 0:00:09.4]} 61. Rb2 {[%clk 0:00:20.4]} 61... Rg6+ {[%clk 0:00:10.3]} 62.
Kf7 {[%clk 0:00:20.4]} 62... Rxh6 {[%clk 0:00:11.2]} 63. Kg7 {[%clk 0:00:20.3]}
63... Rh3 {[%clk 0:00:11.8]} 64. Rb3 {[%clk 0:00:19.4]} 64... Rxb3 {[%clk
0:00:11.2]} 65. Kh6 {[%clk 0:00:19.9]} 65... Rg3 {[%clk 0:00:12]} 66. Kh5 {[%clk
0:00:20]} 66... e1=Q {[%clk 0:00:12.9]} 67. Kh6 {[%clk 0:00:20.9]} 67... Qh1#
{[%clk 0:00:13.3]} 0-1

[Event "Early-Titled-Tuesday-Blitz-February-27-2024"]
[Site "Chess.com"]
[Date "2024.02.27"]
[Round "7"]
[White "JonSnowNW1"]
[Black "IMRosen"]
[Result "1-0"]
[WhiteElo "2524"]
[BlackElo "2683"]
[TimeControl "180+1"]
[EndTime "9:17:25 PST"]
[Termination "JonSnowNW1 won by checkmate"]

1. c4 {[%clk 0:02:59.3]} 1... e6 {[%clk 0:03:00]} 2. Nf3 {[%clk 0:02:46.7]} 2...
d5 {[%clk 0:03:00.2]} 3. d4 {[%clk 0:02:36]} 3... Nf6 {[%clk 0:03:00.5]} 4. g3
{[%clk 0:02:20.3]} 4... dxc4 {[%clk 0:03:00.6]} 5. Qa4+ {[%clk 0:02:18.6]} 5...
Bd7 {[%clk 0:02:58.6]} 6. Qxc4 {[%clk 0:02:18.6]} 6... c5 {[%clk 0:02:59.2]} 7.
dxc5 {[%clk 0:02:16.2]} 7... b6 {[%clk 0:02:08.1]} 8. cxb6 {[%clk 0:02:12.1]}
8... Qxb6 {[%clk 0:02:09]} 9. Nc3 {[%clk 0:02:08.8]} 9... Bc5 {[%clk 0:02:01.9]}
10. e3 {[%clk 0:02:02.4]} 10... Na6 {[%clk 0:01:53.2]} 11. Bg2 {[%clk
0:01:55.1]} 11... Rc8 {[%clk 0:01:53.4]} 12. Qh4 {[%clk 0:01:46.4]} 12... Be7
{[%clk 0:01:04.1]} 13. O-O {[%clk 0:01:33.2]} 13... Nd5 {[%clk 0:01:04.4]} 14.
Qg4 {[%clk 0:01:30.7]} 14... Nxc3 {[%clk 0:00:59.3]} 15. bxc3 {[%clk 0:01:28.1]}
15... Bf6 {[%clk 0:00:53.9]} 16. e4 {[%clk 0:01:20]} 16... Bxc3 {[%clk
0:00:45.6]} 17. Be3 {[%clk 0:01:15.3]} 17... Qa5 {[%clk 0:00:45.9]} 18. Rac1
{[%clk 0:01:12.6]} 18... O-O {[%clk 0:00:45.8]} 19. Rxc3 {[%clk 0:01:06.8]}
19... Rxc3 {[%clk 0:00:38.1]} 20. Bd4 {[%clk 0:01:05.7]} 20... e5 {[%clk
0:00:35.8]} 21. Bxc3 {[%clk 0:00:30.1]} 21... Qc7 {[%clk 0:00:30.6]} 22. Bxe5
{[%clk 0:00:14.7]} 22... Bxg4 {[%clk 0:00:30.8]} 23. Bxc7 {[%clk 0:00:14.9]}
23... Nxc7 {[%clk 0:00:31.7]} 24. Ne5 {[%clk 0:00:14.5]} 24... Be6 {[%clk
0:00:31.4]} 25. Rc1 {[%clk 0:00:12.9]} 25... Nb5 {[%clk 0:00:26.7]} 26. a4
{[%clk 0:00:11.8]} 26... Nd4 {[%clk 0:00:27.3]} 27. Bf1 {[%clk 0:00:12.2]} 27...
f6 {[%clk 0:00:21.8]} 28. Nc6 {[%clk 0:00:12.1]} 28... Nb3 {[%clk 0:00:17.9]}
29. Rd1 {[%clk 0:00:10.5]} 29... a5 {[%clk 0:00:15.3]} 30. Rd6 {[%clk
0:00:10.6]} 30... Bf7 {[%clk 0:00:13.5]} 31. Ne7+ {[%clk 0:00:10.6]} 31... Kh8
{[%clk 0:00:13.5]} 32. Nf5 {[%clk 0:00:10.8]} 32... g6 {[%clk 0:00:12.8]} 33.
Nh6 {[%clk 0:00:09.8]} 33... Nc5 {[%clk 0:00:08.1]} 34. Rxf6 {[%clk 0:00:06.3]}
34... Kg7 {[%clk 0:00:07.1]} 35. Rxf7+ {[%clk 0:00:06.9]} 35... Rxf7 {[%clk
0:00:08]} 36. Nxf7 {[%clk 0:00:07.7]} 36... Kxf7 {[%clk 0:00:08.9]} 37. Bc4+
{[%clk 0:00:07]} 37... Kf6 {[%clk 0:00:09.5]} 38. Bb5 {[%clk 0:00:05.9]} 38...
Nxe4 {[%clk 0:00:09.8]} 39. f4 {[%clk 0:00:06.5]} 39... Nc3 {[%clk 0:00:09.7]}
40. Bc6 {[%clk 0:00:06.4]} 40... Ke7 {[%clk 0:00:09.3]} 41. Kf2 {[%clk
0:00:06.8]} 41... Kd6 {[%clk 0:00:10]} 42. Be8 {[%clk 0:00:07.1]} 42... Kc5
{[%clk 0:00:08.5]} 43. Ke3 {[%clk 0:00:07.5]} 43... Kb4 {[%clk 0:00:09]} 44. g4
{[%clk 0:00:08]} 44... Nxa4 {[%clk 0:00:07]} 45. Bxa4 {[%clk 0:00:07.4]} 45...
Kxa4 {[%clk 0:00:07.6]} 46. f5 {[%clk 0:00:08.1]} 46... gxf5 {[%clk 0:00:04.1]}
47. gxf5 {[%clk 0:00:09]} 47... Kb3 {[%clk 0:00:04.2]} 48. f6 {[%clk 0:00:08.9]}
48... a4 {[%clk 0:00:04.5]} 49. f7 {[%clk 0:00:09.3]} 49... a3 {[%clk
0:00:04.4]} 50. f8=Q {[%clk 0:00:10.2]} 50... h5 {[%clk 0:00:04.9]} 51. Qb8+
{[%clk 0:00:10.8]} 51... Ka2 {[%clk 0:00:05.1]} 52. Kd2 {[%clk 0:00:10.4]} 52...
Ka1 {[%clk 0:00:05]} 53. Kc2 {[%clk 0:00:10.9]} 53... a2 {[%clk 0:00:05.6]} 54.
Qb2# {[%clk 0:00:10.7]} 1-0

[Event "Early-Titled-Tuesday-Blitz-February-27-2024"]
[Site "Chess.com"]
[Date "2024.02.27"]
[Round "7"]
[White "DuleMudule"]
[Black "vugarrasulov"]
[Result "1/2-1/2"]
[WhiteElo "2859"]
[BlackElo "3007"]
[TimeControl "180+1"]
[EndTime "9:17:26 PST"]
[Termination "Game drawn - insufficient material"]

1. d4 {[%clk 0:03:00.9]} 1... Nf6 {[%clk 0:02:59.6]} 2. Bg5 {[%clk 0:03:01]}
2... e6 {[%clk 0:02:58.6]} 3. e3 {[%clk 0:03:00.9]} 3... c5 {[%clk 0:02:56.9]}
4. c3 {[%clk 0:03:01.2]} 4... h6 {[%clk 0:02:52.7]} 5. Bh4 {[%clk 0:03:00.7]}
5... Qb6 {[%clk 0:02:51.2]} 6. Nd2 {[%clk 0:02:55.5]} 6... d5 {[%clk 0:02:50.8]}
7. Ngf3 {[%clk 0:02:54.3]} 7... Nc6 {[%clk 0:02:46.9]} 8. Qb3 {[%clk 0:02:38.6]}
8... Be7 {[%clk 0:02:42.5]} 9. Be2 {[%clk 0:02:37.5]} 9... Bd7 {[%clk
0:02:28.4]} 10. Ne5 {[%clk 0:02:34.5]} 10... cxd4 {[%clk 0:02:06.5]} 11. Qxb6
{[%clk 0:02:17]} 11... axb6 {[%clk 0:02:07.4]} 12. exd4 {[%clk 0:02:03.9]} 12...
Nxe5 {[%clk 0:01:45.6]} 13. dxe5 {[%clk 0:02:03]} 13... Ne4 {[%clk 0:01:36.1]}
14. Nxe4 {[%clk 0:01:51.2]} 14... dxe4 {[%clk 0:01:35.4]} 15. Bxe7 {[%clk
0:01:49]} 15... Kxe7 {[%clk 0:01:36.3]} 16. f4 {[%clk 0:01:10.8]} 16... exf3
{[%clk 0:01:34.6]} 17. Bxf3 {[%clk 0:01:10.7]} 17... Bc6 {[%clk 0:01:22.3]} 18.
O-O {[%clk 0:00:59.1]} 18... Ra5 {[%clk 0:01:21]} 19. Rfe1 {[%clk 0:00:44.4]}
19... Rd8 {[%clk 0:01:19.5]} 20. Bxc6 {[%clk 0:00:31.4]} 20... bxc6 {[%clk
0:01:20.4]} 21. a4 {[%clk 0:00:31.6]} 21... Rda8 {[%clk 0:01:10.6]} 22. b3
{[%clk 0:00:26.6]} 22... b5 {[%clk 0:01:10.5]} 23. Re4 {[%clk 0:00:26.7]} 23...
bxa4 {[%clk 0:00:59.6]} 24. bxa4 {[%clk 0:00:27.6]} 24... Rc5 {[%clk 0:00:51.3]}
25. Ra3 {[%clk 0:00:26.7]} 25... Raa5 {[%clk 0:00:51.8]} 26. Kf2 {[%clk
0:00:24.3]} 26... g5 {[%clk 0:00:50.2]} 27. g4 {[%clk 0:00:23.3]} 27... Kd7
{[%clk 0:00:49.6]} 28. Re3 {[%clk 0:00:22.3]} 28... Rxe5 {[%clk 0:00:45.3]} 29.
Rxe5 {[%clk 0:00:14.3]} 29... Rxe5 {[%clk 0:00:46.2]} 30. a5 {[%clk 0:00:13.7]}
30... Kc7 {[%clk 0:00:46.8]} 31. a6 {[%clk 0:00:14.3]} 31... Kb8 {[%clk
0:00:47.5]} 32. Rb3+ {[%clk 0:00:14.7]} 32... Ka8 {[%clk 0:00:45.1]} 33. Rb7
{[%clk 0:00:14.5]} 33... f5 {[%clk 0:00:45.4]} 34. Rh7 {[%clk 0:00:13.7]} 34...
fxg4 {[%clk 0:00:43]} 35. Rxh6 {[%clk 0:00:13.1]} 35... Ka7 {[%clk 0:00:43.6]}
36. Kg3 {[%clk 0:00:11.5]} 36... Re4 {[%clk 0:00:43.3]} 37. Rg6 {[%clk
0:00:10.7]} 37... Kxa6 {[%clk 0:00:43.1]} 38. Rxg5 {[%clk 0:00:11.1]} 38... Rc4
{[%clk 0:00:33.3]} 39. Rxg4 {[%clk 0:00:10.6]} 39... Rxc3+ {[%clk 0:00:34.1]}
40. Kg2 {[%clk 0:00:11.1]} 40... Kb5 {[%clk 0:00:26.5]} 41. h4 {[%clk
0:00:11.3]} 41... c5 {[%clk 0:00:23.8]} 42. h5 {[%clk 0:00:11.5]} 42... Rd3
{[%clk 0:00:24.3]} 43. h6 {[%clk 0:00:11.7]} 43... Rd8 {[%clk 0:00:23.2]} 44. h7
{[%clk 0:00:10]} 44... Rh8 {[%clk 0:00:23.7]} 45. Rg7 {[%clk 0:00:10.4]} 45...
c4 {[%clk 0:00:23]} 46. Kf3 {[%clk 0:00:10.9]} 46... Kb4 {[%clk 0:00:21.7]} 47.
Ke3 {[%clk 0:00:10.7]} 47... Kc3 {[%clk 0:00:21.4]} 48. Rc7 {[%clk 0:00:10.3]}
48... Rf8 {[%clk 0:00:18.1]} 49. Rc6 {[%clk 0:00:08.2]} 49... Rh8 {[%clk
0:00:16.3]} 50. Rc7 {[%clk 0:00:08.5]} 50... Kb3 {[%clk 0:00:15.8]} 51. Kd4
{[%clk 0:00:08.5]} 51... Rd8+ {[%clk 0:00:16.4]} 52. Ke5 {[%clk 0:00:07.2]}
52... c3 {[%clk 0:00:16.8]} 53. Kxe6 {[%clk 0:00:07.5]} 53... c2 {[%clk
0:00:15.7]} 54. Kf6 {[%clk 0:00:07.2]} 54... Kb2 {[%clk 0:00:11.3]} 55. Rxc2+
{[%clk 0:00:06.2]} 55... Kxc2 {[%clk 0:00:11.8]} 56. Kg7 {[%clk 0:00:07.1]}
56... Rd7+ {[%clk 0:00:12.3]} 57. Kg8 {[%clk 0:00:07.4]} 57... Rxh7 {[%clk
0:00:13.2]} 58. Kxh7 {[%clk 0:00:07.2]} 1/2-1/2

[Event "Early-Titled-Tuesday-Blitz-February-27-2024"]
[Site "Chess.com"]
[Date "2024.02.27"]
[Round "7"]
[White "nihalsarin"]
[Black "Sina_Movahed"]
[Result "0-1"]
[WhiteElo "3178"]
[BlackElo "2951"]
[TimeControl "180+1"]
[EndTime "9:17:28 PST"]
[Termination "Sina_Movahed won by resignation"]

1. e4 {[%clk 0:02:50.8]} 1... c5 {[%clk 0:02:59.9]} 2. Nc3 {[%clk 0:02:46.6]}
2... d6 {[%clk 0:02:58.8]} 3. d4 {[%clk 0:02:39.4]} 3... cxd4 {[%clk 0:02:57.6]}
4. Qxd4 {[%clk 0:02:39.2]} 4... Nc6 {[%clk 0:02:58.5]} 5. Qd3 {[%clk 0:02:32.1]}
5... Nf6 {[%clk 0:02:57.8]} 6. h3 {[%clk 0:02:32.2]} 6... g6 {[%clk 0:02:52.7]}
7. Nf3 {[%clk 0:02:32.7]} 7... Bg7 {[%clk 0:02:53.1]} 8. Be2 {[%clk 0:02:33.4]}
8... O-O {[%clk 0:02:52.8]} 9. O-O {[%clk 0:02:34.1]} 9... Be6 {[%clk
0:02:47.9]} 10. Ng5 {[%clk 0:02:32.3]} 10... Bd7 {[%clk 0:02:46.9]} 11. Nd5
{[%clk 0:02:25.8]} 11... Rc8 {[%clk 0:02:46]} 12. c3 {[%clk 0:02:25.1]} 12...
Ne5 {[%clk 0:02:40.9]} 13. Qg3 {[%clk 0:02:24]} 13... Bc6 {[%clk 0:02:22.1]} 14.
Rd1 {[%clk 0:02:23.5]} 14... Re8 {[%clk 0:02:13.6]} 15. Bf4 {[%clk 0:02:05.4]}
15... Bxd5 {[%clk 0:02:06.3]} 16. exd5 {[%clk 0:02:04]} 16... h6 {[%clk
0:01:55.9]} 17. Bxe5 {[%clk 0:01:55.2]} 17... dxe5 {[%clk 0:01:56.8]} 18. Nf3
{[%clk 0:01:56]} 18... Nh5 {[%clk 0:01:49.4]} 19. Qh4 {[%clk 0:01:47]} 19... Nf4
{[%clk 0:01:48.3]} 20. Bb5 {[%clk 0:01:40]} 20... Rf8 {[%clk 0:01:43]} 21. g3
{[%clk 0:01:33.9]} 21... g5 {[%clk 0:01:33]} 22. Nxg5 {[%clk 0:01:32.1]} 22...
hxg5 {[%clk 0:01:33.2]} 23. Qg4 {[%clk 0:01:32.6]} 23... f5 {[%clk 0:01:32.3]}
24. Qf3 {[%clk 0:01:33.1]} 24... Nxh3+ {[%clk 0:01:21.7]} 25. Kg2 {[%clk
0:01:33.1]} 25... g4 {[%clk 0:01:22.2]} 26. Qe2 {[%clk 0:01:32.9]} 26... Qb6
{[%clk 0:01:16.4]} 27. Bd7 {[%clk 0:01:31.7]} 27... Rcd8 {[%clk 0:01:02.7]} 28.
Be6+ {[%clk 0:01:31.5]} 28... Kh7 {[%clk 0:01:00.9]} 29. f3 {[%clk 0:01:17.9]}
29... Ng5 {[%clk 0:00:30.8]} 30. Rh1+ {[%clk 0:01:16.9]} 30... Kg6 {[%clk
0:00:30.8]} 31. fxg4 {[%clk 0:01:10.9]} 31... Nxe6 {[%clk 0:00:30.3]} 32. gxf5+
{[%clk 0:00:49.5]} 32... Rxf5 {[%clk 0:00:30.3]} 33. dxe6 {[%clk 0:00:49.9]}
33... Qc6+ {[%clk 0:00:29]} 34. Kg1 {[%clk 0:00:49.8]} 34... Qf3 {[%clk
0:00:27.6]} 35. Qxf3 {[%clk 0:00:44.2]} 35... Rxf3 {[%clk 0:00:28.5]} 36. Kg2
{[%clk 0:00:45]} 36... Rfd3 {[%clk 0:00:26.9]} 37. Rh4 {[%clk 0:00:41.7]} 37...
Bf6 {[%clk 0:00:26.8]} 38. Rb4 {[%clk 0:00:40.9]} 38... Rd2+ {[%clk 0:00:24.9]}
39. Kf3 {[%clk 0:00:38.9]} 39... R8d3+ {[%clk 0:00:24.6]} 40. Ke4 {[%clk
0:00:37.4]} 40... Rxg3 {[%clk 0:00:20.7]} 41. Rxb7 {[%clk 0:00:35.8]} 41... Bg5
{[%clk 0:00:17.8]} 42. Re1 {[%clk 0:00:32.7]} 42... Kf6 {[%clk 0:00:16.6]} 43.
Rxa7 {[%clk 0:00:21]} 43... Rxb2 {[%clk 0:00:16.3]} 44. Kd5 {[%clk 0:00:21.1]}
44... Rd2+ {[%clk 0:00:16.3]} 45. Kc4 {[%clk 0:00:21.2]} 45... Rd6 {[%clk
0:00:16.2]} 46. Rc7 {[%clk 0:00:20.3]} 46... Rxe6 {[%clk 0:00:15.9]} 47. a4
{[%clk 0:00:19.3]} 47... e4 {[%clk 0:00:16.3]} 48. a5 {[%clk 0:00:19.9]} 48...
Bd2 {[%clk 0:00:15.7]} 49. Rf1+ {[%clk 0:00:19.1]} 49... Rf3 {[%clk 0:00:15.9]}
50. Rc8 {[%clk 0:00:09.7]} 50... Kf7 {[%clk 0:00:14.9]} 51. Rxf3+ {[%clk
0:00:04.2]} 51... exf3 {[%clk 0:00:14.3]} 52. Rh8 {[%clk 0:00:04.9]} 52... f2
{[%clk 0:00:14.2]} 53. Rh7+ {[%clk 0:00:05.6]} 53... Ke8 {[%clk 0:00:13.7]} 54.
Rh8+ {[%clk 0:00:05.3]} 54... Kd7 {[%clk 0:00:14.2]} 55. Rf8 {[%clk 0:00:05.7]}
55... Rf6 {[%clk 0:00:13.9]} 0-1

[Event "Early-Titled-Tuesday-Blitz-February-27-2024"]
[Site "Chess.com"]
[Date "2024.02.27"]
[Round "7"]
[White "ural58"]
[Black "GeorgiosSouleidis"]
[Result "1-0"]
[WhiteElo "2496"]
[BlackElo "2702"]
[TimeControl "180+1"]
[EndTime "9:17:30 PST"]
[Termination "ural58 won on time"]

1. e4 {[%clk 0:03:00.9]} 1... c5 {[%clk 0:02:58.8]} 2. b3 {[%clk 0:03:00.7]}
2... e6 {[%clk 0:02:57.5]} 3. Bb2 {[%clk 0:02:59.7]} 3... a6 {[%clk 0:02:57.8]}
4. d4 {[%clk 0:02:55]} 4... cxd4 {[%clk 0:02:57.8]} 5. Qxd4 {[%clk 0:02:55.1]}
5... Nc6 {[%clk 0:02:57.6]} 6. Qd2 {[%clk 0:02:55.2]} 6... Nf6 {[%clk
0:02:53.3]} 7. Nc3 {[%clk 0:02:55.2]} 7... d5 {[%clk 0:02:50.3]} 8. exd5 {[%clk
0:02:53.8]} 8... exd5 {[%clk 0:02:50.8]} 9. O-O-O {[%clk 0:02:48.6]} 9... Be6
{[%clk 0:02:50.8]} 10. Nf3 {[%clk 0:02:46.1]} 10... Bb4 {[%clk 0:02:43.7]} 11.
a3 {[%clk 0:02:45.3]} 11... Ne4 {[%clk 0:02:23.6]} 12. Qe3 {[%clk 0:02:38.7]}
12... Nxc3 {[%clk 0:02:21.7]} 13. Bxc3 {[%clk 0:02:38.6]} 13... Bxa3+ {[%clk
0:02:21.7]} 14. Kb1 {[%clk 0:02:38.3]} 14... O-O {[%clk 0:02:19.3]} 15. Bd3
{[%clk 0:02:25.1]} 15... Bb4 {[%clk 0:02:09.1]} 16. Bb2 {[%clk 0:02:23.1]} 16...
Be7 {[%clk 0:01:56]} 17. h4 {[%clk 0:02:21.3]} 17... Bf6 {[%clk 0:01:20.1]} 18.
Ng5 {[%clk 0:02:21]} 18... Bxb2 {[%clk 0:01:12.1]} 19. Bxh7+ {[%clk 0:02:19.7]}
19... Kh8 {[%clk 0:01:12.2]} 20. Kxb2 {[%clk 0:02:20.2]} 20... Qf6+ {[%clk
0:01:09.4]} 21. Kb1 {[%clk 0:02:15.1]} 21... Rae8 {[%clk 0:01:03.8]} 22. Qg3
{[%clk 0:01:25.6]} 22... Nd4 {[%clk 0:01:00.8]} 23. Bd3 {[%clk 0:01:23]} 23...
Bf5 {[%clk 0:00:55.8]} 24. Bxf5 {[%clk 0:01:08.8]} 24... Nxf5 {[%clk 0:00:56.7]}
25. Qf4 {[%clk 0:01:02.8]} 25... Rd8 {[%clk 0:00:44.8]} 26. g4 {[%clk
0:01:01.4]} 26... Nh6 {[%clk 0:00:45]} 27. Qg3 {[%clk 0:00:52.7]} 27... Qd6
{[%clk 0:00:20.7]} 28. Qxd6 {[%clk 0:00:49.7]} 28... Rxd6 {[%clk 0:00:21.6]} 29.
f3 {[%clk 0:00:50.1]} 29... f6 {[%clk 0:00:22.1]} 30. Nh3 {[%clk 0:00:49.6]}
30... Re8 {[%clk 0:00:21.3]} 31. Nf4 {[%clk 0:00:49.2]} 31... d4 {[%clk
0:00:18.9]} 32. Rd3 {[%clk 0:00:47.5]} 32... Nf7 {[%clk 0:00:17.9]} 33. Rhd1
{[%clk 0:00:46.7]} 33... Ne5 {[%clk 0:00:15.4]} 34. Rxd4 {[%clk 0:00:45.4]}
34... Rxd4 {[%clk 0:00:16.3]} 35. Rxd4 {[%clk 0:00:45.6]} 35... Nxf3 {[%clk
0:00:17.2]} 36. Rd7 {[%clk 0:00:45]} 36... Nxh4 {[%clk 0:00:16.2]} 37. Rxb7
{[%clk 0:00:44.3]} 37... Re4 {[%clk 0:00:16.5]} 38. Nh5 {[%clk 0:00:29.8]} 38...
Rxg4 {[%clk 0:00:16.4]} 39. Ra7 {[%clk 0:00:30.5]} 39... Rg5 {[%clk 0:00:11.8]}
40. Nf4 {[%clk 0:00:30.2]} 40... a5 {[%clk 0:00:12]} 41. Ne6 {[%clk 0:00:28.1]}
41... Rg1+ {[%clk 0:00:10.9]} 42. Kb2 {[%clk 0:00:27.7]} 42... g5 {[%clk
0:00:05.4]} 43. Rxa5 {[%clk 0:00:27.6]} 43... g4 {[%clk 0:00:06.1]} 44. Rh5+
{[%clk 0:00:27.3]} 44... Kg8 {[%clk 0:00:05]} 45. Rxh4 {[%clk 0:00:27.8]} 45...
Kf7 {[%clk 0:00:05.6]} 46. Nf4 {[%clk 0:00:27.9]} 46... f5 {[%clk 0:00:06.2]}
47. b4 {[%clk 0:00:27.1]} 47... Kf6 {[%clk 0:00:06.6]} 48. Nd3 {[%clk
0:00:25.1]} 48... Kg5 {[%clk 0:00:06.6]} 49. Rh8 {[%clk 0:00:24.7]} 49... g3
{[%clk 0:00:05]} 50. b5 {[%clk 0:00:24.4]} 50... Kg4 {[%clk 0:00:02.1]} 51. Rg8+
{[%clk 0:00:24]} 51... Kf3 {[%clk 0:00:02.5]} 52. b6 {[%clk 0:00:24.7]} 52...
Rh1 {[%clk 0:00:03.1]} 53. Ne5+ {[%clk 0:00:24.1]} 53... Ke4 {[%clk 0:00:03.1]}
54. b7 {[%clk 0:00:14]} 54... g2 {[%clk 0:00:03.6]} 55. b8=Q {[%clk 0:00:13.4]}
55... g1=Q {[%clk 0:00:03.4]} 56. Rxg1 {[%clk 0:00:13.6]} 56... Rxg1 {[%clk
0:00:04.3]} 57. Nc4 {[%clk 0:00:13.5]} 1-0